Workbook

Sheet 1-3 ГОДА
A1: 7 день на 09.09.2025
A2: МОУ детский сад № 320 Ежеденевное 20-ти дневное меню ( Весна-лето) для детей дошкольного возраста 1-3 лет, 12 часового режима функционирования
A3: Прием пищи, наименование блюда | B3: Масса порции | C3: Пищевые вещества | F3: Энергети-ческая ценность, ккал
C4: Белки, г | D4: Жиры, г | E4: Углеводы, г
A5: Завтрак
A6: Каша вязкая молочная ( рисовая) ТТК № 102 | B6: 150 | C6: 2.3 | D6: 6.0 | E6: 23.7 | F6: 163.5
A7: ЧАЙ С МОЛОКОМ ИЛИ СЛИВКАМИ № 394 | B7: 180 | C7: 2.7 | D7: 2.3 | E7: 14.0 | F7: 87.6
A8: Батон | B8: 20 | C8: 1.5 | D8: 0.6 | E8: 10.3 | F8: 52.4
A9: Сыр (порциями) №7 | B9: 5 | C9: 1.2 | D9: 1.5 | E9: 0.0 | F9: 17.7
A10: ИТОГО ЗА ЗАВТРАК | B10: 355 | C10: =SUM(C6:C9) -> 7.7 | D10: 10.4 | E10: =SUM(E6:E9) -> 48.0 | F10: 321.2
A11: II Завтрак
A12: СОК ЯБЛОЧНО-ВИНОГРАДНЫЙ № 399 | B12: 180 | C12: 0.9 | D12: 0.2 | E12: 17.7 | F12: 75.1
A13: ИТОГО ЗА 2-й ЗАВТРАК | B13: =SUM(B12) -> 180 | C13: =SUM(C12) -> 0.9 | D13: =SUM(D12) -> 0.2 | E13: =SUM(E12) -> 17.7 | F13: =SUM(F12) -> 75.1
A14: Обед
A15: САЛАТ ИЗ СВЕКЛЫ №33 | B15: 30 | C15: 0.4 | D15: 1.9 | E15: 2.5 | F15: 29.5
A16: Борщ на мяо-костном бульоне со сметаной ттк №200 | B16: 150/5 | C16: 1.2 | D16: 3.0 | E16: 5.4 | F16: 54.8
A17: Фрикаделькит в соусе (говядина) ТТК №60 | B17: 50/30 | C17: 8.3 | D17: 9.8 | E17: 15.6 | F17: 154.2
A18: МАКАРОННЫЕ ИЗДЕЛИЯ ОТВАРНЫЕ С МАСЛОМ ТТК №205 | B18: 110 | C18: 4.1 | D18: 4.4 | E18: 26.3 | F18: 166.1
A19: КИСЕЛЬ ИЗ ПОВИДЛА, ДЖЕМА, ВАРЕНЬЯ №383 | B19: 150 | C19: 0.1 | D19: 0.0 | E19: 21.1 | F19: 84.8
A20: ХЛЕБ ПЕКЛЕВАННЫЙ | B20: 20 | C20: 1.3 | D20: 0.2 | E20: 8.5 | F20: 40.8
A21: ИТОГО ЗА ОБЕД | B21: 545 | C21: 15.4 | D21: 19.3 | E21: 79.4 | F21: 530.2
A22: Уплотнённый полдник
A23: ЗАПЕКАНКА ИЗ ТВОРОГА С СОУСОМ МОЛОЧНЫМ СЛАДКИМ С ВАНИЛЬЮ ТТК №151, №477 | B23: 130/50 | C23: 16.3 | D23: 13.2 | E23: 27.4 | F23: 365.8
A24: КЕФИР №401 | B24: 180 | C24: 5.1 | D24: 4.4 | E24: 7.0 | F24: 92.5
A25: БАТОН | B25: 40 | C25: 3.0 | D25: 1.2 | E25: 20.6 | F25: 104.8
A29: ИТОГО ЗА ПОЛДНИК | B29: 400 | C29: =SUM(C23:C28) -> 24.4 | D29: =SUM(D23:D28) -> 18.8 | E29: =SUM(E23:E28) -> 55.0 | F29: 563.1
A30: Всего за день: | C30: =SUM(C29+C21+C13+C10) -> 48.4 | D30: =SUM(D29+D21+D13+D10) -> 48.7 | E30: 200.1 | F30: =SUM(F29+F21+F13+F10) -> 1,489.6

Sheet 3-7 ЛЕТ
A1: 7 день на 09.09.2025
A2: МОУ детский сад № 320 Ежеденевное 20-ти дневное меню ( Весна-лето) для детей дошкольного возраста 3-7 лет, 12 часового режима функционирования
A3: Прием пищи, наименование блюда | B3: Масса порции | C3: Пищевые вещества | F3: Энергети-ческая ценность, ккал
C4: Белки, г | D4: Жиры, г | E4: Углеводы, г
A5: Завтрак
A6: Каша вязкая молочная ( рисовая) ТТК № 102 | B6: 150 | C6: 2.3 | D6: 6.0 | E6: 23.7 | F6: 163.5
A7: ЧАЙ С МОЛОКОМ ИЛИ СЛИВКАМИ № 394 | B7: 180 | C7: 2.7 | D7: 2.3 | E7: 14.0 | F7: 87.6
A8: Батон | B8: 20 | C8: 1.5 | D8: 0.6 | E8: 10.3 | F8: 52.4
A9: Сыр (порциями) №7 | B9: 5 | C9: 1.2 | D9: 1.5 | E9: 0.0 | F9: 17.7
A10: ИТОГО ЗА ЗАВТРАК | B10: 355 | C10: =SUM(C6:C9) -> 7.7 | D10: 10.4 | E10: =SUM(E6:E9) -> 48.0 | F10: 321.2
A11: II Завтрак
A12: СОК ЯБЛОЧНО-ВИНОГРАДНЫЙ № 399 | B12: 180 | C12: 0.9 | D12: 0.2 | E12: 17.7 | F12: 75.1
A13: ИТОГО ЗА 2-й ЗАВТРАК | B13: =SUM(B12) -> 180 | C13: =SUM(C12) -> 0.9 | D13: =SUM(D12) -> 0.2 | E13: =SUM(E12) -> 17.7 | F13: =SUM(F12) -> 75.1
A14: Обед
A15: САЛАТ ИЗ СВЕКЛЫ №33 | B15: 30 | C15: 0.4 | D15: 1.9 | E15: 2.5 | F15: 29.5
A16: Борщ на мяо-костном бульоне со сметаной ттк №200 | B16: 150/5 | C16: 1.2 | D16: 3.0 | E16: 5.4 | F16: 54.8
A17: Фрикаделькит в соусе (говядина) ТТК №60 | B17: 50/30 | C17: 8.3 | D17: 9.8 | E17: 15.6 | F17: 154.2
A18: МАКАРОННЫЕ ИЗДЕЛИЯ ОТВАРНЫЕ С МАСЛОМ ТТК №205 | B18: 110 | C18: 4.1 | D18: 4.4 | E18: 26.3 | F18: 166.1
A19: КИСЕЛЬ ИЗ ПОВИДЛА, ДЖЕМА, ВАРЕНЬЯ №383 | B19: 150 | C19: 0.1 | D19: 0.0 | E19: 21.1 | F19: 84.8
A20: ХЛЕБ ПЕКЛЕВАННЫЙ | B20: 20 | C20: 1.3 | D20: 0.2 | E20: 8.5 | F20: 40.8
A21: ИТОГО ЗА ОБЕД | B21: 545 | C21: 15.4 | D21: 19.3 | E21: 79.4 | F21: 530.2
A22: Уплотнённый полдник
A23: ЗАПЕКАНКА ИЗ ТВОРОГА С СОУСОМ МОЛОЧНЫМ СЛАДКИМ С ВАНИЛЬЮ ТТК №151, №477 | B23: 130/50 | C23: 16.3 | D23: 13.2 | E23: 27.4 | F23: 365.8
A24: КЕФИР №401 | B24: 180 | C24: 5.1 | D24: 4.4 | E24: 7.0 | F24: 92.5
A25: БАТОН | B25: 40 | C25: 3.0 | D25: 1.2 | E25: 20.6 | F25: 104.8
A29: ИТОГО ЗА ПОЛДНИК | B29: 400 | C29: =SUM(C23:C28) -> 24.4 | D29: =SUM(D23:D28) -> 18.8 | E29: =SUM(E23:E28) -> 55.0 | F29: 563.1
A30: Всего за день: | C30: =SUM(C29+C21+C13+C10) -> 48.4 | D30: =SUM(D29+D21+D13+D10) -> 48.7 | E30: 200.1 | F30: =SUM(F29+F21+F13+F10) -> 1,489.6

Sheet Лист3
